bitfinex/quotes_SOLUSD_20250924
["timestamp","ask_amount","ask_price","bid_price","bid_amount"]
[1758729450625,5.30409138,214.11,214.09,4.67093278]
[1758729450997,6.00409138,214.1,214.06,4.6715874]
[1758729451223,6.00409138,214.09,214.06,4.6715874]
[1758729451439,5.30409138,214.07,214.03,4.6722422]
[1758729451732,6.00409138,214.06,213.99,0.66]
[1758729451902,6.00409138,214.06,213.99,5.96409138]
[1758729452306,6.00409138,214.06,214.0,16.35514018]
[1758729452515,5.30409138,214.04,214.0,16.35514018]
[1758729452959,5.30409138,214.04,213.97,23.36759083]
[1758729452960,6.00409138,214.03,213.97,4.67355236]
[1758729453330,6.00409138,214.03,213.97,16.35743327]
[1758729453857,5.30409138,214.03,213.97,21.66152465]
[1758729454560,5.30409138,214.03,213.97,16.35743327]
[1758729454756,5.30409138,214.03,213.97,21.66152465]
[1758729455456,5.30409138,214.03,213.97,9.97764374]
[1758729455631,5.30409138,214.03,213.97,21.66152465]
[1758729456136,5.30409138,214.0,213.97,4.67355236]
[1758729456339,6.14625295,213.99,213.95,4.67387871]
[1758729456534,5.30409138,213.98,213.95,4.67387871]
[1758729456745,5.30409138,213.98,213.92,10.63860113]
[1758729456952,5.30409138,213.97,213.92,5.33450975]
[1758729457263,5.30409138,213.96,213.92,0.66]
[1758729457559,5.30409138,213.93,213.86,5.30409138]
[1758729457735,5.44625295,213.93,213.86,5.30409138]
[1758729457942,5.44625295,213.93,213.88,11.68879745]
[1758729458859,5.30409138,213.92,213.88,12.34879745]
[1758729459059,5.44625295,213.93,213.88,12.34879745]
[1758729459361,26.0,213.95,213.89,5.96409138]
[1758729459666,31.30409138,213.95,213.89,5.96409138]
[1758729460050,5.30409138,213.98,213.92,5.30409138]
[1758729460237,0.14216157,213.97,213.92,0.66]
[1758729460444,5.44625295,213.97,213.92,0.66]
[1758729461159,0.14216157,213.97,213.92,0.66]
[1758729461541,0.14216157,213.93,213.88,4.6753044]
[1758729461861,0.7,213.92,213.88,4.6753044]
[1758729462064,0.7,213.92,213.87,16.36508158]
[1758729462260,5.44625295,213.93,213.87,22.32917296]
[1758729462561,0.14216157,213.93,213.88,5.30409138]
[1758729462946,0.14216157,213.93,213.88,5.96409138]
[1758729463258,0.14216157,213.93,213.89,0.66]
[1758729463772,0.14216157,213.94,213.89,5.96409138]
[1758729463975,0.14216157,213.94,213.89,0.66]
[1758729464141,0.14216157,213.94,213.9,16.36278634]
[1758729464341,0.14216157,213.94,213.9,21.66687772]
[1758729464541,133.9,213.95,213.91,0.66]
[1758729464766,133.9,213.95,213.92,0.66]
[1758729464948,133.9,213.95,213.93,0.66]
[1758729465153,6.14625295,213.98,213.92,5.30409138]
[1758729465154,0.14216157,213.97,213.92,5.30409138]
[1758729465543,133.9,213.98,213.94,5.30409138]
[1758729465861,133.9,213.98,213.95,0.66]
[1758729466038,152.79968539,214.01,213.96,16.35819778]
[1758729466237,148.19559401,214.01,213.96,16.35819778]
[1758729466438,133.9,214.01,213.98,5.30409138]
[1758729466865,133.9,214.01,213.97,5.30409138]
[1758729467252,133.9,214.01,213.98,5.30409138]
[1758729467565,14.29559401,214.06,214.0,5.30409138]
[1758729467971,5.30409138,214.08,214.01,5.30409138]
[1758729468172,26.0,214.07,214.02,16.3536118]
[1758729468372,26.7,214.07,214.02,16.3536118]
[1758729468562,0.7,214.07,214.02,16.3536118]
[1758729468758,0.7,214.07,214.02,4.67246051]
[1758729469075,0.7,214.09,214.03,5.96409138]
[1758729469260,44.89968539,214.11,214.04,5.30409138]
[1758729469572,0.14216157,214.1,214.04,5.30409138]
[1758729469877,6.00409138,214.15,214.08,5.30409138]
[1758729470061,0.7,214.15,214.1,4.67071461]
[1758729470265,6.00409138,214.14,214.1,4.67071461]
[1758729470561,5.30409138,214.16,214.1,17.00750115]
[1758729470764,0.7,214.17,214.1,22.31159253]
[1758729470955,5.30409138,214.17,214.11,0.7]
[1758729471158,5.98409138,214.16,214.1,5.30409138]
[1758729471453,18.89968539,214.18,214.11,6.00409138]
[1758729471771,5.30409138,214.17,214.11,6.00409138]
[1758729472077,5.30409138,214.16,214.11,0.7]
[1758729472268,5.30409138,214.16,214.12,4.67027834]
[1758729473884,5.30409138,214.15,214.12,4.67027834]
[1758729474063,5.30409138,214.15,214.09,5.30409138]
[1758729474064,5.30409138,214.13,214.06,26.0]
[1758729474265,5.30409138,214.12,214.07,11.67842294]
[1758729474487,5.30409138,214.12,214.08,0.7]
[1758729474783,5.30409138,214.12,214.07,11.67842294]
[1758729475288,0.68,214.14,214.07,11.67842294]
[1758729475289,5.30409138,214.13,214.08,0.7]
[1758729476169,5.30409138,214.14,214.07,16.98251432]
[1758729476370,0.14216157,214.15,214.1,4.67071461]
[1758729476575,26.68,214.16,214.11,0.7]
[1758729476576,31.30409138,214.16,214.11,0.7]
[1758729476956,26.0,214.16,214.12,0.7]
[1758729477161,26.0,214.16,214.1,22.35159253]
[1758729478176,42.82625295,214.18,214.11,6.00409138]
[1758729478364,5.30409138,214.17,214.12,16.34597421]
[1758729478684,5.30409138,214.17,214.12,17.04597421]
[1758729478885,5.30409138,214.17,214.13,0.7]
[1758729479279,5.44625295,214.18,214.13,0.7]
[1758729479477,0.2,214.19,214.12,16.34597421]
[1758729479658,5.50409138,214.19,214.13,0.7]
[1758729479858,5.30409138,214.18,214.13,0.7]
[1758729480275,0.2,214.19,214.15,4.66962409]
[1758729480456,133.9,214.18,214.15,4.66962409]
[1758729480859,133.9,214.18,214.15,17.02368432]
[1758729481681,133.9,214.18,214.15,16.34368432]
[1758729481985,133.9,214.18,214.16,5.98409138]
[1758729482158,0.2,214.19,214.17,5.98409138]
[1758729482364,28.18,214.26,214.18,21.64548646]
[1758729482671,28.18,214.26,214.25,5.30409138]
[1758729482672,1e-08,214.26,214.25,5.30409138]
[1758729482985,5.30409138,214.38,214.25,5.98409138]
[1758729483193,0.14216157,214.36,214.3,5.30409138]
[1758729483492,0.14216157,214.36,214.21,26.0]
[1758729483493,5.30409138,214.35,214.29,5.30409138]
[1758729483676,5.30409138,214.36,214.3,5.30409138]
[1758729484187,31.30409138,214.36,214.3,5.30409138]
[1758729484378,26.0,214.36,214.3,4.66635557]
[1758729484586,5.30409138,214.35,214.3,4.66635557]
[1758729484892,5.30409138,214.35,214.3,5.34635557]
[1758729485266,5.44625295,214.32,214.25,0.68]
[1758729485468,5.30409138,214.27,214.22,4.6679025]
[1758729485678,0.66,214.26,214.22,16.33814804]
[1758729485877,5.30409138,214.27,214.22,16.33814804]
[1758729486267,5.96409138,214.27,214.22,16.33814804]
[1758729486797,0.66,214.3,214.23,5.30409138]
[1758729486962,0.14216157,214.29,214.24,5.30409138]
[1758729487169,0.14216157,214.29,214.24,5.98409138]
[1758729487363,37.34,214.31,214.25,0.68]
[1758729487576,42.64409138,214.31,214.25,0.68]
[1758729487985,5.30409138,214.3,214.25,0.68]
[1758729488689,5.30409138,214.3,214.26,4.66722673]
[1758729489192,5.30409138,214.27,214.18,4.66897002]
[1758729489393,18.26195297,214.3,214.19,5.30409138]
[1758729489394,5.30409138,214.25,214.19,5.30409138]
[1758729489798,0.66,214.26,214.19,5.30409138]
[1758729490002,5.30409138,214.25,214.19,5.30409138]
[1758729490178,5.96409138,214.26,214.19,5.98409138]
[1758729490868,5.96409138,214.26,214.2,16.33986928]
[1758729491276,0.66,214.26,214.2,16.33986928]
[1758729491477,175.90623389,214.31,214.18,4.66893298]
[1758729491478,5.30409138,214.21,214.18,4.66893298]
[1758729491780,5.30409138,214.2,214.18,4.66893298]
[1758729492589,7.90504269,214.21,214.15,16.3432473]
[1758729493404,7.90504269,214.18,214.15,4.66962409]
[1758729493789,7.90504269,214.19,214.15,4.66962409]
[1758729493993,8.56504269,214.19,214.15,4.66962409]
[1758729494179,7.90504269,214.19,214.15,4.66962409]
[1758729494581,7.90504269,214.19,214.14,16.34422047]
[1758729494907,0.66,214.19,214.14,24.92926316]
[1758729495104,7.90504269,214.19,214.14,16.34422047]
[1758729495312,8.56504269,214.19,214.14,4.66984215]
[1758729495778,0.14216157,214.2,214.12,4.67027834]
[1758729495779,7.90504269,214.16,214.12,4.67027834]
[1758729495978,38.0,214.18,214.1,4.67061636]
[1758729495979,8.56504269,214.15,214.1,4.67061636]
[1758729496183,7.90504269,214.12,214.08,4.67101705]
[1758729496485,0.66,214.11,214.08,4.67101705]
[1758729496798,7.90504269,214.12,214.06,4.6715874]
[1758729497184,7.90504269,214.12,214.06,16.35055591]
[1758729498275,0.14216157,214.12,214.07,7.90504269]
[1758729498501,0.14216157,214.16,214.11,7.90504269]
[1758729498700,0.14216157,214.16,214.12,13.25532103]
[1758729498894,0.14216157,214.16,214.12,5.35027834]
[1758729499093,0.14216157,214.16,214.12,17.02597421]
[1758729499294,0.14216157,214.16,214.12,24.9310169]
[1758729500488,0.14216157,214.17,214.12,4.67027834]
[1758729500704,0.82216157,214.17,214.12,4.67027834]
[1758729500893,7.90504269,214.13,214.0,0.69]
[1758729501099,7.90504269,214.06,213.92,23.37302077]
[1758729501285,7.90504269,213.97,213.93,4.67442621]
[1758729501504,7.90504269,213.95,213.82,4.67683097]
[1758729501718,7.90504269,213.95,213.86,7.90504269]
[1758729501719,7.90504269,213.93,213.86,7.90504269]
[1758729501918,8.04720426,213.92,213.85,7.90504269]
[1758729502117,45.38720426,213.92,213.85,7.90504269]
[1758729502330,0.14216157,213.92,213.86,7.90504269]
[1758729502489,0.14216157,213.92,213.87,8.59504269]
[1758729502814,35.82,213.93,213.9,7.90504269]
[1758729503206,0.68,214.02,213.92,7.90504269]
[1758729503516,0.68,214.06,213.98,7.90504269]
[1758729503685,36.90504269,214.06,213.99,7.90504269]
[1758729503885,29.0,214.06,213.97,7.90504269]
[1758729504082,7.90504269,214.04,213.97,7.90504269]
[1758729504284,0.14216157,214.02,213.96,0.69]
[1758729504711,0.14216157,214.02,213.97,4.67355236]
[1758729504919,26.0,214.05,213.98,0.69]
[1758729505094,7.90504269,214.04,213.98,0.69]
[1758729505494,26.0,214.05,213.98,0.69]
[1758729505495,26.0,214.05,213.98,8.59504269]
[1758729505703,33.90504269,214.05,213.98,8.59504269]
[1758729505904,0.14216157,214.04,213.98,8.59504269]
[1758729506310,7.90504269,214.03,213.98,0.69]
[1758729506508,28.32,214.06,213.97,24.26247596]
[1758729506817,45.28504269,214.05,214.0,4.67289719]
[1758729507003,8.58504269,214.04,214.0,4.67289719]
[1758729507200,7.90504269,214.02,213.98,4.67315771]
[1758729507596,0.68,214.03,213.98,12.5782004]
[1758729507800,8.04720426,214.03,213.98,4.67315771]
[1758729508319,149.26767733,214.14,213.99,0.69]
[1758729508513,8.04720426,214.06,213.99,8.59504269]
[1758729508814,7.90504269,214.03,214.0,4.67289719]
[1758729508998,37.04216157,214.05,214.0,17.04514018]
[1758729509200,44.94720426,214.05,214.0,17.04514018]
[1758729509400,37.04216157,214.05,214.0,24.26018287]
[1758729509713,37.04216157,214.05,214.01,0.69]
[1758729510018,44.94720426,214.05,214.0,16.35514018]
[1758729510390,37.04216157,214.05,214.0,16.35514018]
[1758729510588,37.04216157,214.05,214.0,24.26018287]
[1758729510790,37.04216157,214.05,214.02,4.67246051]
[1758729511016,37.04216157,214.05,214.02,16.3536118]
[1758729512400,37.04216157,214.05,214.02,4.67246051]
[1758729512401,45.62720426,214.05,214.02,4.67246051]
[1758729512608,7.90504269,214.04,214.02,4.67246051]
[1758729512923,7.90504269,214.04,213.96,26.0]
[1758729512924,8.72720426,214.03,213.93,0.69]
[1758729513119,7.90504269,213.98,213.93,4.67442621]
[1758729513316,13.59559401,214.02,213.94,0.69]
[1758729513317,37.36,213.97,213.94,0.69]
[1758729513499,37.36,213.98,213.94,0.69]
[1758729513700,0.68,214.02,213.95,7.90504269]
[1758729513904,37.38,214.01,213.95,8.59504269]
[1758729514104,37.38,214.01,213.97,7.90504269]
[1758729514404,37.38,214.01,213.97,8.59504269]
[1758729514723,37.38,214.01,213.98,0.69]
[1758729514916,37.38,214.01,213.99,5.36311556]
[1758729515108,37.38,214.01,213.99,4.67311556]
[1758729516815,7.90504269,214.06,214.01,4.67267884]
[1758729517028,7.90504269,214.04,214.01,4.67267884]
[1758729517327,8.58504269,214.03,213.99,4.67296075]
[1758729517511,7.90504269,214.04,213.99,4.67296075]
[1758729517712,8.58504269,214.04,213.99,4.67296075]
[1758729518932,7.90504269,214.04,213.99,16.35574966]
[1758729519619,37.38,214.05,213.99,16.35574966]
[1758729519620,45.28504269,214.05,214.0,0.69]
[1758729519816,37.38,214.05,214.0,8.59504269]
[1758729520321,8.58504269,214.04,213.99,4.67296075]
[1758729520626,0.68,214.03,213.99,4.67296075]
[1758729521133,10.9813914,214.04,213.98,11.68315664]
[1758729521134,7.90504269,214.04,213.98,16.35649059]
[1758729521437,45.28504269,214.05,213.99,8.59504269]
[1758729522104,141.80504269,214.04,213.99,0.69]
[1758729522616,133.9,214.04,213.99,8.59504269]
[1758729523220,133.9,214.04,214.0,16.35514018]
[1758729523402,133.9,214.04,214.01,0.69]
[1758729523604,133.9,214.04,214.01,8.59504269]
[1758729523814,171.26,214.04,214.02,0.69]
[1758729524413,171.26,214.04,214.0,16.35514018]
[1758729525214,171.26,214.04,213.93,49.37213107]
[1758729525215,7.90504269,214.02,213.99,4.67311556]
[1758729525421,7.90504269,214.0,213.93,11.68606553]
[1758729525732,0.68,213.99,213.93,11.68606553]
[1758729525913,45.26504269,213.98,213.93,16.36049174]
[1758729526108,8.58504269,213.97,213.93,4.67442621]
[1758729526315,7.90504269,213.96,213.93,4.67442621]
[1758729526926,7.90504269,213.94,213.9,4.67508181]
[1758729527231,45.94504269,213.93,213.88,16.36390777]
[1758729527418,37.36,213.92,213.88,17.05390777]
[1758729527623,37.36,213.92,213.88,24.95895046]
[1758729528236,37.36,213.92,213.89,8.59504269]
[1758729529308,37.36,213.92,213.9,4.67508181]
[1758729529805,38.04,213.92,213.9,4.67508181]
[1758729530134,8.58504269,213.91,213.86,16.36584681]
[1758729530517,0.68,213.91,213.86,24.2708895]
[1758729531123,0.66,213.9,213.86,16.36584681]
[1758729532120,7.90504269,213.91,213.86,16.36584681]
[1758729532339,8.56504269,213.91,213.86,16.36584681]
[1758729532644,37.38,213.91,213.87,0.69]
[1758729532841,37.38,213.91,213.87,8.59504269]
[1758729533012,37.38,213.91,213.86,16.36584681]
[1758729533214,0.66,213.9,213.85,4.67617488]
[1758729533423,3.07937776,213.9,213.85,13.27121757]
[1758729533638,37.38,213.89,213.86,7.90504269]
[1758729533850,37.38,213.89,213.87,8.59504269]
[1758729534139,37.38,213.89,213.86,7.90504269]
[1758729534513,38.04,213.89,213.85,16.3666121]
[1758729535339,37.38,213.89,213.85,16.3666121]
[1758729535522,3.07916744,213.88,213.85,16.3666121]
[1758729535844,37.38,213.89,213.85,4.67617488]
[1758729536031,38.04,213.89,213.85,16.3666121]
[1758729536216,3.08068094,213.88,213.85,24.27165479]
[1758729536417,3.08068094,213.88,213.86,8.59504269]
[1758729536636,3.08068094,213.91,213.86,8.59504269]
[1758729536829,3.08068094,213.9,213.89,7.90504269]
[1758729537031,37.38,213.92,213.89,8.59504269]
[1758729537231,3.08314212,213.91,213.89,8.59504269]
[1758729537430,3.08314212,213.91,213.9,12.5801245]
[1758729537634,37.38,213.93,213.9,17.05278634]
[1758729537843,3.08314212,213.92,213.91,7.90504269]
[1758729538230,3.08314212,213.92,213.9,17.05278634]
[1758729538415,3.08314212,213.91,213.9,16.36278634]
[1758729538622,37.38,213.94,213.9,16.36278634]
[1758729538822,3.08314212,213.93,213.9,16.36278634]
[1758729539053,3.08314212,213.92,213.9,16.36278634]
[1758729539246,3.08314212,213.91,213.9,16.36278634]
[1758729539544,3.08314212,213.93,213.9,11.68770453]
[1758729539746,3.08314212,213.92,213.9,19.59274722]
[1758729540051,3.08314212,213.91,213.9,11.68770453]
[1758729540736,11.70818481,213.91,213.87,4.67573759]
[1758729540942,3.08314212,213.9,213.87,16.36508158]
[1758729541130,3.08314212,213.89,213.88,8.57504269]
[1758729541537,3.08314212,213.89,213.88,12.58056167]
[1758729541738,3.08314212,213.89,213.87,11.68934399]
[1758729541739,41.18314212,213.89,213.86,4.67595623]
[1758729541952,3.08314212,213.88,213.86,4.67595623]
[1758729542247,3.08314212,213.87,213.86,13.25099892]
[1758729542762,3.08314212,213.87,213.86,12.58099892]
[1758729543267,3.08314212,213.87,213.86,4.67595623]
[1758729543469,3.08314212,213.87,213.85,4.67617488]
[1758729543766,3.08314212,213.86,213.85,4.67617488]
[1758729545060,3.08314212,213.86,213.85,12.58121757]
[1758729545358,3.08314212,213.86,213.85,4.67617488]
[1758729545555,3.08314212,213.86,213.85,5.34617488]
[1758729545736,3.08314212,213.86,213.85,12.58121757]
[1758729546264,3.08314212,213.86,213.85,13.25121757]
[1758729546645,3.08314212,213.86,213.85,5.34617488]
[1758729546851,3.08314212,213.86,213.85,12.58121757]
[1758729547156,3.08314212,213.86,213.85,13.25121757]
[1758729547355,3.08314212,213.88,213.85,24.94165479]
[1758729547563,3.08314212,213.87,213.85,24.27165479]
[1758729547749,0.72,213.88,213.85,16.3666121]
[1758729547934,3.09592194,213.87,213.85,16.3666121]
[1758729548138,3.09613814,213.87,213.85,16.3666121]
[1758729548465,3.81613814,213.87,213.85,4.67617488]
[1758729548851,0.72,213.87,213.85,4.67617488]
[1758729549051,3.81613814,213.87,213.85,4.67617488]
[1758729549254,0.72,213.87,213.85,4.67617488]
[1758729549765,3.09613814,213.88,213.85,16.3666121]
[1758729549945,3.09613814,213.88,213.85,24.27165479]
[1758729550145,0.72,213.9,213.85,24.27165479]
[1758729550437,26.0,213.92,213.85,24.27165479]
[1758729550438,8.62504269,213.89,213.85,16.3666121]
[1758729550645,37.38,213.88,213.85,16.3666121]
[1758729550865,38.1,213.88,213.85,16.3666121]
[1758729551062,38.1,213.88,213.85,4.67617488]
[1758729551555,0.72,213.87,213.85,4.67617488]
[1758729552168,37.38,213.88,213.85,16.3666121]
[1758729552461,38.1,213.88,213.85,16.3666121]
[1758729552649,38.1,213.88,213.85,4.67617488]
[1758729553563,38.1,213.88,213.85,16.3666121]
[1758729553754,37.38,213.88,213.85,16.3666121]
[1758729554077,13.73775558,213.85,213.84,0.1]
[1758729554264,21.64279827,213.85,213.84,0.1]
[1758729554563,19.77281155,213.85,213.84,0.1]
[1758729555843,24.44898643,213.85,213.84,0.1]
[1758729556660,29.7640424,213.85,213.84,0.1]
[1758729557042,14.45775558,213.85,213.84,0.1]
[1758729557249,57.15281155,213.85,213.84,0.1]
[1758729557451,83.15281155,213.85,213.84,0.1]
[1758729557968,63.52216157,213.85,213.84,0.1]
[1758729558142,5.31505597,213.86,213.84,4.77639356]
[1758729558348,37.38,213.85,213.84,4.77639356]
[1758729558738,13.59559401,213.9,213.84,17.13737747]
[1758729558952,5.31505597,213.88,213.84,16.46737747]
[1758729559154,37.38,213.89,213.84,16.46737747]
[1758729559353,5.31505597,213.88,213.84,16.46737747]
[1758729559767,5.31505597,213.86,213.84,4.77639356]
[1758729559951,43.41505597,213.85,213.84,0.1]
[1758729560664,38.1,213.85,213.84,0.1]
[1758729560969,62.43786752,213.85,213.84,0.1]
[1758729561346,77.82775558,213.85,213.84,0.1]
[1758729561553,88.45786752,213.85,213.84,0.1]
[1758729561949,93.1340424,213.85,213.84,0.1]
[1758729562645,88.45786752,213.85,213.84,0.1]
[1758729562865,19.74281155,213.85,213.84,0.1]
[1758729563070,3.85890115,213.95,213.84,17.17737747]
[1758729563244,5.31505597,213.89,213.85,0.71]
[1758729563443,5.31505597,213.87,213.84,4.77639356]
[1758729563752,5.31505597,213.85,213.84,0.1]
[1758729563952,56.39064998,213.85,213.84,0.1]
[1758729564158,57.22281155,213.85,213.84,0.1]
[1758729565067,19.74281155,213.85,213.84,0.1]
[1758729565241,57.24281155,213.85,213.84,0.1]
[1758729565773,61.91898643,213.85,213.84,0.1]
[1758729566641,57.24281155,213.85,213.84,0.1]
[1758729566877,56.51281155,213.85,213.84,0.1]
[1758729567379,67.1940424,213.85,213.84,0.1]
[1758729567580,61.87898643,213.85,213.84,0.1]
[1758729567950,67.1940424,213.85,213.84,0.1]
[1758729568273,37.48,213.87,213.84,5.48639356]
[1758729568472,42.79505597,213.87,213.84,5.48639356]
[1758729568657,5.31505597,213.85,213.84,4.77639356]
[1758729568855,5.31505597,213.85,213.84,0.1]
[1758729569059,5.45721754,213.85,213.84,0.1]
[1758729570362,5.45721754,213.85,213.84,4.77639356]
[1758729570877,43.21721754,213.85,213.84,0.1]
[1758729572077,62.17898643,213.85,213.84,0.1]
[1758729572655,0.69,213.89,213.84,0.1]
[1758729572853,5.31505597,213.85,213.84,4.77639356]
[1758729573060,43.03505597,213.85,213.84,0.1]
[1758729573259,43.03505597,213.85,213.84,4.77639356]
[1758729573964,37.72,213.85,213.84,4.77639356]
[1758729574159,43.17721754,213.85,213.84,0.1]
[1758729574465,62.13898643,213.85,213.84,0.1]
[1758729574781,65.24486272,213.85,213.84,0.1]
[1758729575281,60.54868784,213.85,213.84,0.1]
[1758729575786,65.22486272,213.85,213.84,0.1]
[1758729576156,70.53991869,213.85,213.84,0.1]
[1758729577059,59.90980675,213.85,213.84,0.1]
[1758729577277,17.53363187,213.85,213.84,0.1]
[1758729577467,62.09898643,213.85,213.84,0.1]
[1758729577675,65.20486272,213.85,213.84,0.1]
[1758729577869,59.83868784,213.85,213.84,0.1]
[1758729578070,22.15868784,213.85,213.84,0.1]
[1758729578267,56.61064998,213.85,213.84,0.1]
[1758729578455,56.75281155,213.85,213.84,0.1]
[1758729578662,56.61064998,213.85,213.84,0.1]
[1758729578862,77.29559401,213.85,213.84,0.1]
[1758729579088,51.43775558,213.85,213.84,0.1]
[1758729579291,56.75281155,213.85,213.84,0.1]
[1758729579869,62.11898643,213.85,213.84,0.1]
[1758729580173,56.75281155,213.85,213.84,0.1]
[1758729580377,57.44281155,213.85,213.84,0.1]
[1758729580579,52.12775558,213.85,213.84,0.1]
[1758729580796,56.75281155,213.85,213.84,0.1]
[1758729581098,65.2258723,213.85,213.84,0.1]
[1758729581467,59.91081633,213.85,213.84,0.1]
[1758729581799,59.85969742,213.85,213.84,0.1]
[1758729581978,56.75281155,213.85,213.84,0.1]
[1758729582296,56.11393046,213.85,213.84,0.1]
[1758729582497,60.54931049,213.85,213.84,0.1]
[1758729582795,65.22548537,213.85,213.84,0.1]
[1758729582995,62.11898643,213.85,213.84,0.1]
[1758729583294,65.22562124,213.85,213.84,0.1]
[1758729583685,60.54944636,213.85,213.84,0.1]
[1758729583880,19.05281155,213.85,213.84,0.1]
[1758729584195,82.79281155,213.85,213.84,0.1]
[1758729584692,82.65064998,213.85,213.84,0.1]
[1758729584996,17.56240418,213.93,213.84,5.48639356]
[1758729584997,13.70350303,213.93,213.84,5.48639356]
[1758729585184,13.59559401,213.88,213.84,5.48639356]
[1758729585380,37.76,213.87,213.85,0.71]
[1758729585579,37.76,213.87,213.86,4.67595623]
[1758729585788,37.90216157,213.87,213.86,5.38595623]
[1758729585983,37.76,213.87,213.86,5.38595623]
[1758729586374,13.59559401,213.92,213.86,17.07584681]
[1758729586612,37.74,213.91,213.87,6.02505597]
[1758729586894,37.74,213.9,213.88,0.71]
[1758729587073,5.31505597,213.93,213.89,0.71]
[1758729587273,13.59559401,213.89,213.84,4.77626726]
[1758729587468,37.74,213.88,213.86,0.71]
[1758729587699,37.74,213.88,213.87,5.38573759]
[1758729587908,37.74,213.88,213.87,0.71]
[1758729588215,43.05505597,213.88,213.87,0.71]
[1758729588387,43.05505597,213.88,213.86,4.67590718]
[1758729588695,43.05505597,213.88,213.86,5.38590718]
[1758729589296,37.74,213.88,213.86,4.67590718]
[1758729589497,5.45721754,213.91,213.87,0.71]
[1758729589697,37.78,213.9,213.88,0.71]
[1758729589906,13.59559401,213.96,213.89,0.71]
[1758729590113,5.31505597,213.93,213.9,0.71]
[1758729590403,5.31505597,213.93,213.91,0.71]
[1758729590404,37.76,213.92,213.91,0.71]
[1758729590612,43.07505597,213.92,213.89,0.71]
[1758729590790,43.07505597,213.92,213.86,17.00494655]
[1758729590791,43.07505597,213.92,213.9,0.67]
[1758729590991,37.76,213.92,213.9,0.67]
[1758729591187,37.76,213.92,213.87,5.31505597]
[1758729591409,37.76,213.92,213.91,0.67]
[1758729591714,37.76,213.92,213.91,5.34486326]
[1758729591916,36.52,213.94,213.91,5.34486326]
[1758729592215,37.76,213.92,213.91,9.98991923]
[1758729592395,37.74,213.92,213.91,4.67486326]
[1758729592599,37.74,213.92,213.91,21.67707738]
[1758729592798,37.74,213.92,213.91,22.34707738]
[1758729593511,37.74,213.94,213.91,10.65991923]
[1758729593701,37.74,213.94,213.92,0.67]
[1758729593898,5.31505597,213.97,213.93,0.67]
[1758729594099,37.74,213.96,213.91,9.98991923]
[1758729594433,37.72,213.95,213.94,0.67]
[1758729594596,0.14216157,213.94,213.89,0.67]
[1758729594804,37.72,213.93,213.89,0.67]
[1758729595010,37.72,213.93,213.9,0.67]
[1758729595329,37.72,213.93,213.91,0.67]
[1758729595524,37.72,213.93,213.9,5.31505597]
[1758729595820,31.45721754,213.96,213.92,0.67]
[1758729596126,37.78,213.95,213.92,0.67]
[1758729598319,43.05505597,214.0,213.94,10.65913902]
[1758729598529,5.31505597,213.98,213.94,0.67]
[1758729598701,37.74,213.97,213.94,0.67]
[1758729598901,37.74,213.97,213.94,5.34418849]
[1758729599101,37.74,213.97,213.95,5.98505597]
[1758729599320,37.74,213.97,213.96,0.67]
[1758729599922,37.74,213.97,213.96,5.34377079]
[1758729600434,134.57,214.02,213.96,4.67377079]
[1758729600435,133.9,214.02,213.96,4.67377079]
[1758729600645,133.9,214.02,213.97,5.31505597]
[1758729601143,133.9,214.02,213.98,0.68]
[1758729601613,0.14216157,214.03,213.97,5.31505597]
[1758729601802,5.45721754,214.03,213.98,0.68]
[1758729602017,0.68,214.04,213.98,5.99505597]
[1758729602224,37.7,214.03,213.98,5.99505597]
[1758729602517,0.14216157,214.06,213.99,0.68]
[1758729602713,0.14216157,214.06,213.98,5.99505597]
[1758729602714,5.31505597,214.04,213.98,5.99505597]
[1758729602922,37.68,214.03,213.98,5.99505597]
[1758729603127,37.68,214.03,213.99,0.68]
[1758729603535,37.68,214.03,213.98,5.31505597]
[1758729603736,42.99505597,214.03,213.98,0.68]
[1758729603912,37.68,214.03,213.99,0.68]
[1758729604425,37.68,214.03,214.0,4.67289719]
[1758729604608,37.68,214.03,213.99,5.35309629]
[1758729604803,37.68,214.03,213.99,17.0358852]
[1758729605003,37.68,214.03,213.99,22.35094117]